{"text_format":"3","workbook":"xlsx","n_sheets":3,"sheets":["Popis zapuščine","Zapuščinsko premoženje","Zapuščinske obveznosti"],"not_rendered":{"defined_names":1},"read":"whole","date_system":"1900"}

{"sheet":"Popis zapuščine","index":0,"n_rows":45,"n_cols":35,"rows_kept":45,"merged":[[0,1,0,30],[0,31,0,39],[1,1,5,39],[6,1,6,6],[6,7,6,39],[7,1,7,6],[7,7,7,39],[9,1,9,6],[9,7,9,39],[10,1,10,6],[10,7,10,39],[11,1,11,6],[11,7,11,20],[11,21,11,26],[11,27,11,30],[11,31,11,33],[11,34,11,39],[12,1,12,6],[12,7,12,20],[12,21,12,26],[13,1,13,6],[13,7,13,20],[13,21,13,26],[14,1,14,6],[14,7,14,20],[14,21,14,26],[15,1,15,6],[17,1,17,39],[18,1,18,6],[18,7,18,12],[18,13,18,15],[18,16,18,18],[18,19,18,26],[18,27,18,31],[18,32,18,39],[19,1,19,6],[19,7,19,12],[19,13,19,15],[19,16,19,18],[19,19,19,26],[19,27,19,31],[19,32,19,39],[20,1,20,6],[20,7,20,12],[20,13,20,15],[20,16,20,18],[20,19,20,26],[20,27,20,31],[20,32,20,39],[21,1,21,6],[21,7,21,12],[21,13,21,15],[21,16,21,18],[21,19,21,26],[21,27,21,31],[21,32,21,39],[22,1,22,6],[22,7,22,12],[22,13,22,15],[22,16,22,18],[22,19,22,26],[22,27,22,31],[22,32,22,39],[23,1,23,6],[23,7,23,12],[23,13,23,15],[23,16,23,18],[23,19,23,26],[23,27,23,31],[23,32,23,39],[25,1,25,39],[26,1,26,6],[26,7,26,12],[26,13,26,18],[26,19,26,26],[26,27,26,31],[26,32,26,39],[27,1,27,6],[27,7,27,12],[27,13,27,18],[27,19,27,26],[27,27,27,31],[27,32,27,39],[28,1,28,6],[28,7,28,12],[28,13,28,18],[28,19,28,26],[28,27,28,31],[28,32,28,39],[29,1,29,6],[29,7,29,12],[29,13,29,18],[29,19,29,26],[29,27,29,31],[29,32,29,39],[30,1,30,6],[30,7,30,12],[30,13,30,18],[30,19,30,26],[30,27,30,31],[30,32,30,39],[31,1,31,6],[31,7,31,12],[31,13,31,18],[31,19,31,26],[31,27,31,31],[31,32,31,39],[33,1,33,12],[33,14,33,39],[34,1,34,12],[34,14,34,21],[34,22,34,25],[34,26,34,33],[34,34,34,39],[35,2,35,12],[35,14,35,21],[35,22,35,25],[35,26,35,33],[35,34,35,39],[36,2,36,12],[36,14,36,21],[36,22,36,25],[36,26,36,33],[36,34,36,39],[37,2,37,12],[37,14,37,21],[37,22,37,25],[37,26,37,33],[37,34,37,39],[38,2,38,12],[38,14,38,21],[38,22,38,25],[38,26,38,33],[38,34,38,39],[39,2,39,12],[39,14,39,21],[39,22,39,25],[39,26,39,33],[39,34,39,39],[40,2,40,12],[40,14,40,21],[40,22,40,25],[40,26,40,33],[40,34,40,39],[41,2,41,12],[41,14,41,21],[41,22,41,25],[41,26,41,33],[41,34,41,39],[42,2,42,12],[42,14,42,21],[42,22,42,25],[42,26,42,33],[42,34,42,38],[43,2,43,12],[43,14,43,21],[43,22,43,25],[43,26,43,33],[43,34,43,39],[44,2,44,12],[44,14,44,21],[44,22,44,25],[44,26,44,33],[44,34,44,39]]}
[]
[null,"Popis zapuščine"]
[]
[]
[]
[]
[null,"Ime izvršitelja(-ev)",{"$nulls":5},"Allan Mattsson"]
[null,"Podatki za stik",{"$nulls":5},"4567 Main St, Buffalo, NY 98052"]
[]
[null,"Ime pokojnika",{"$nulls":5},"August Bergquist"]
[null,"Naslov",{"$nulls":5},"6789 Main St"]
[null,"Mesto",{"$nulls":5},"Buffalo",{"$nulls":13},"Država",{"$nulls":5},"NY",{"$nulls":3},"Poštna številka",null,null,98052]
[null,"Številka socialnega zavarovanja",{"$nulls":5},"AAA-GG-SSSS",{"$nulls":13},"Poklic",{"$nulls":5},"Zobozdravnik"]
[null,"Datum rojstva",{"$nulls":5},"1965-12-08",{"$nulls":13},"Kraj rojstva",{"$nulls":5},"NY"]
[null,"Datum smrti",{"$nulls":5},{"$f":"TODAY()-3","v":"2022-05-14"},{"$nulls":13},"Kraj smrti",{"$nulls":5},"NY"]
[null,"Dodatne informacije"]
[]
[null,"  Zakonec, otroci in drugi vzdrževani družinski člani"]
[null,"Ime",{"$nulls":5},"Razmerje",{"$nulls":5},"Vzdrževan družinski član",null,null,"Starost",null,null,"Naslov",{"$nulls":7},"Telefonska številka",{"$nulls":4},"E-poštni naslov"]
[null,"Mirjam Nilsson",{"$nulls":5},"Osebni zastopnik",{"$nulls":5},"Ne",null,null,30]
[null,"Victoria Lindqvist",{"$nulls":5},"Zakonec",{"$nulls":5},"Da",null,null,35]
[null,"Alexander Martensson",{"$nulls":5},"Otrok",{"$nulls":5},"Da",null,null,12]
[]
[]
[]
[null,"Strokovni svetovalci"]
[null,"Vrsta svetovalca",{"$nulls":5},"Oseba za stik",{"$nulls":5},"Podjetje",{"$nulls":5},"Naslov",{"$nulls":7},"Telefonska številka",{"$nulls":4},"E-poštni naslov"]
[null,"Računovodja"]
[null,"Odvetnik/notar"]
[null,"Drugo"]
[]
[]
[]
[null,"  Kontrolni seznam zapuščine",{"$nulls":12},"  Popisi zapuščine"]
[null,"    Elementi kontrolnega seznama",{"$nulls":12},"Zapuščinsko premoženje",{"$nulls":7},"Vrednost (€)",{"$nulls":3},"Zapuščinske obveznosti",{"$nulls":7},"Vrednost (€)"]
[null,"✔","Oporoka, testament ali drugi dokumenti",{"$nulls":11},{"$f":"'Zapuščinsko premoženje'!B12","v":"Bančni računi"},{"$nulls":7},{"$f":"'Zapuščinsko premoženje'!G20","v":{"v":0,"d":"0.00 €"}},{"$nulls":3},{"$f":"'Zapuščinske obveznosti'!B11","v":"Hipoteke"},{"$nulls":7},{"$f":"'Zapuščinske obveznosti'!G18","v":{"v":0,"d":"0.00 €"}}]
[null,"✔","Pogodba o najemu sefa in ključi",{"$nulls":11},{"$f":"'Zapuščinsko premoženje'!B22","v":"Osebne naložbe"},{"$nulls":7},{"$f":"'Zapuščinsko premoženje'!G30","v":{"v":0,"d":"0.00 €"}},{"$nulls":3},{"$f":"'Zapuščinske obveznosti'!B21","v":"Osebna posojila in krediti"},{"$nulls":7},{"$f":"'Zapuščinske obveznosti'!G28","v":{"v":0,"d":"0.00 €"}}]
[null,"✖","Gesla za računalnike in spletne račune",{"$nulls":11},{"$f":"'Zapuščinsko premoženje'!B32","v":"Poslovni deleži"},{"$nulls":7},{"$f":"'Zapuščinsko premoženje'!G40","v":{"v":0,"d":"0.00 €"}},{"$nulls":3},{"$f":"'Zapuščinske obveznosti'!B31","v":"Poslovni deleži"},{"$nulls":7},{"$f":"'Zapuščinske obveznosti'!G38","v":{"v":0,"d":"0.00 €"}}]
[null,"✔","Sporazumi o skrbniškem skladu",{"$nulls":11},{"$f":"'Zapuščinsko premoženje'!B42","v":"Nepremičnina"},{"$nulls":7},{"$f":"'Zapuščinsko premoženje'!G50","v":{"v":0,"d":"0.00 €"}},{"$nulls":3},{"$f":"'Zapuščinske obveznosti'!B41","v":"Kreditne kartice"},{"$nulls":7},{"$f":"'Zapuščinske obveznosti'!G48","v":{"v":0,"d":"0.00 €"}}]
[null,"✔","Življenjsko zavarovanje, zdravstveno/nezgodno zavarovanje in zavarovalne police",{"$nulls":11},{"$f":"'Zapuščinsko premoženje'!B52","v":"Pokojninski načrti"},{"$nulls":7},{"$f":"'Zapuščinsko premoženje'!G60","v":{"v":0,"d":"0.00 €"}},{"$nulls":3},{"$f":"'Zapuščinske obveznosti'!B51","v":"Druge obveznosti"},{"$nulls":7},{"$f":"'Zapuščinske obveznosti'!G58","v":{"v":0,"d":"0.00 €"}}]
[null,"✔","Finančna poročila",{"$nulls":11},{"$f":"'Zapuščinsko premoženje'!B62","v":"Zavarovanje"},{"$nulls":7},{"$f":"'Zapuščinsko premoženje'!G70","v":{"v":0,"d":"0.00 €"}}]
[null,"✔","Napovedi za odmero dohodnine za zadnja tri leta",{"$nulls":11},{"$f":"'Zapuščinsko premoženje'!B72","v":"Zasebna posojila in hipoteke"},{"$nulls":7},{"$f":"'Zapuščinsko premoženje'!G80","v":{"v":0,"d":"0.00 €"}}]
[null,"✔","Rojstni in mrliški listi",{"$nulls":11},{"$f":"'Zapuščinsko premoženje'!B82","v":"Deleži v drugih nepremičninah in skladih"},{"$nulls":7},{"$f":"'Zapuščinsko premoženje'!G90","v":{"v":0,"d":"0.00 €"}}]
[null,"✖","Listine, hipoteke in izpiski o najemu",{"$nulls":11},{"$f":"'Zapuščinsko premoženje'!B92","v":"Osebni predmeti in drugo premoženje"},{"$nulls":7},{"$f":"'Zapuščinsko premoženje'!G100","v":{"v":0,"d":"0.00 €"}}]
[null,"☐","Neplačani računi in opomini",{"$nulls":11},"Skupno premoženje",{"$nulls":7},{"$f":"'Zapuščinsko premoženje'!G10","v":{"v":0,"d":"0.00 €"}},{"$nulls":3},"Obveznosti skupaj",{"$nulls":7},{"$f":"SUM(AI36:AN44)","v":{"v":0,"d":"0.00 €"}}]

{"sheet":"Zapuščinsko premoženje","index":1,"n_rows":100,"n_cols":8,"rows_kept":100,"merged":[[0,1,0,7],[1,1,5,7],[6,1,7,7],[11,1,11,7],[12,1,12,7],[21,1,21,7],[22,1,22,7],[31,1,31,7],[32,1,32,7],[41,1,41,7],[42,1,42,7],[51,1,51,7],[52,1,52,7],[61,1,61,7],[62,1,62,7],[71,1,71,7],[72,1,72,7],[81,1,81,7],[82,1,82,7],[91,1,91,7],[92,1,92,7]]}
[]
[null,"Zapuščinsko premoženje"]
[]
[]
[]
[]
[null,"Na tem delovnem listu ustvarite popis zapuščinskega premoženja. Določiti morate tržno vrednost vsakega premoženja na datum smrti. Preglejte vse zapise, vključno s finančnimi poročili, zavarovalnimi policami in davčnimi obračuni, da pridobite tržne vrednosti. Morda boste morali pridobiti tudi cenitev osebnih predmetov (npr. umetniških del, zbirk, starin itd.). V popis morate vključiti tudi vse tuje premoženje, kot so nepremičnine, vrednostni papirji ali poslovni deleži v tujini. Morda boste morali pridobiti strokovno pomoč za pridobitev natančne tržne vrednosti tujega premoženja."]
[]
[]
[null,"Skupno premoženje",{"$nulls":4},{"$f":"tblBankAccounts[[#Totals],[Stanje ]]+tblPersonalInvestments[[#Totals],[Tržna vrednost]]+tblBusinessInterests[[#Totals],[Vrednost ]]+tblRealEstate[[#Totals],[Tržna cena]]+tblPensionPlans[[#Totals],[Vrednost ]]+tblInsurance[[#Totals],[Denarna vrednost ]]+tblMortgages[[#Totals],[Dolgovani znesek ]]+tblTrusts[[#Totals],[Znesek za razdelitev]]+tblOtherAssets[[#Totals],[Vrednost ]]","v":{"v":0,"d":"0.00 €"}}]
[]
[null,"Bančni računi"]
[null,"Navedite vse bančne račune, vključno z gotovino, potovalnimi čeki, denarnimi nakaznicami in računi pri poslovnih bankah, hranilnicah, kreditnih zadrugah itd. Vključite vsa imena, navedena na računu, in dejansko denarno vrednost, ki se nanaša na natančen znesek v dolarjih in drobižu ob smrti."]
[null,"Finančna ustanova ","Naslov","Telefon","Številka računa","Vrsta računa","Stanje ","Opombe"]
[]
[]
[]
[]
[]
[null,"Skupaj",{"$nulls":4},{"$f":"SUBTOTAL(109,tblBankAccounts[[Stanje ]])","v":{"v":0,"d":"0.00 €"}}]
[]
[null,"Osebne naložbe"]
[null,"Navedite denarne račune, račune kritnega sklada, neobdavčene varčevalne račune, registrirane pokojninske varčevalne načrte, registrirane pokojninske dohodkovne sklade (RRIF), zaklenjene RRIF-je, zaklenjene RRSP-je, dohodkovne sklade, predpisane pokojninske dohodkovne sklade, registrirane izobraževalne varčevalne načrte, rente itd."]
[null,"Podjetje","Naslov","Telefon","Številka računa","Upravičenec","Tržna vrednost","Opombe"]
[]
[]
[]
[]
[]
[null,"Skupaj",{"$nulls":4},{"$f":"SUBTOTAL(109,tblPersonalInvestments[Tržna vrednost])","v":{"v":0,"d":"0.00 €"}}]
[]
[null,"Poslovni deleži"]
[null,"Navedite vse poslovne deleže, vključno s samostojnimi podjetniki, strokovnimi praksami, družbami, partnerstvi, družbami z omejeno odgovornostjo in partnerstvi, skupnimi podjetji in drugimi nejavnimi poslovnimi subjekti. "]
[null,"Ime podjetja","Naslov","Telefon","Stik","Vrsta","Vrednost ","Opombe"]
[]
[]
[]
[]
[]
[null,"Skupaj",{"$nulls":4},{"$f":"SUBTOTAL(109,tblBusinessInterests[[Vrednost ]])","v":{"v":0,"d":"0.00 €"}}]
[]
[null,"Nepremičnina"]
[null,"Navedite vse nepremičnine, na katerih sta zapustnik in/ali njegov preživeli zakonec/partner lastnika, solastnika ali imata kakršen koli delež, vključno z nepremičninami, kupljenimi v rekreacijskih objektih in časovnih zakupih. Pridobite kopije listin. Navedite opis nepremičnine s fizičnim naslovom. Navedite pošteno tržno vrednost nepremičnine na podlagi zadnje ocene davčnega ocenjevalca."]
[null,"Naslov","Nosilec naziva","Telefon","Stik","Nabavna cena","Tržna cena","Opombe"]
[]
[]
[]
[]
[]
[null,"Skupaj",{"$nulls":3},{"$f":"SUBTOTAL(109,tblRealEstate[Nabavna cena])","v":{"v":0,"d":"0.00 €"}},{"$f":"SUBTOTAL(109,tblRealEstate[Tržna cena])","v":{"v":0,"d":"0.00 €"}}]
[]
[null,"Pokojninski načrti"]
[null,"Navedite določene prejemke, denarne nakupe ali določene prispevke, DPSP ali skupinski RRSP itd."]
[null,"Podjetje","Telefon","Vrsta načrta","Upravičenec","E-poštni naslov","Vrednost ","Opombe"]
[]
[]
[]
[]
[]
[null,"Skupaj",{"$nulls":4},{"$f":"SUBTOTAL(109,tblPensionPlans[[Vrednost ]])","v":{"v":0,"d":"0.00 €"}}]
[]
[null,"Zavarovanje"]
[null,"Vključite skrbniške sklade, police življenjskega zavarovanja z navedenimi upravičenci in naložbene račune, ki se prenesejo ob smrti, kot premoženje, ki ni podedovano v primeru smrti. Če sodišče poizveduje o tem premoženju, se lahko izvršitelj zlahka sklicuje na seznam premoženja, ki ni pod oporoko, in pojasni njegovo odsotnost v popisu zapuščine."]
[null,"Izdajatelj","Številka zavarovalne police","Telefon","Upravičenec","Nominalna vrednost ","Denarna vrednost ","Opombe"]
[]
[]
[]
[]
[]
[null,"Skupaj",{"$nulls":3},{"$f":"SUBTOTAL(109,tblInsurance[[Nominalna vrednost ]])","v":{"v":0,"d":"0.00 €"}},{"$f":"SUBTOTAL(109,tblInsurance[[Denarna vrednost ]])","v":{"v":0,"d":"0.00 €"}}]
[]
[null,"Zasebna posojila in hipoteke"]
[null,"Navedite zasebna posojila in hipoteke, pri katerih je bila pokojna oseba posojilodajalec."]
[null,"Ime posojilojemalca","Naslov","Telefon","Vrsta","Prvotni znesek","Dolgovani znesek ","Opombe"]
[]
[]
[]
[]
[]
[null,"Skupaj",{"$nulls":3},{"$f":"SUBTOTAL(109,tblMortgages[Prvotni znesek])","v":{"v":0,"d":"0.00 €"}},{"$f":"SUBTOTAL(109,tblMortgages[[Dolgovani znesek ]])","v":{"v":0,"d":"0.00 €"}}]
[]
[null,"Deleži v drugih nepremičninah in skladih"]
[null,"Navedite premoženje, registrirano na ime umrle osebe, ki se hrani v imenu drugih oseb (npr. premoženje, ki ga ima umrla oseba kot skrbnik, ali premoženje, ki se hrani na podlagi pooblastila)."]
[null,"Ime premoženja/sklada","Ime izvršitelja/skrbnika","Telefon","Naslov","E-poštni naslov","Znesek za razdelitev","Opombe"]
[]
[]
[]
[]
[]
[null,"Skupaj",{"$nulls":4},{"$f":"SUBTOTAL(109,tblTrusts[Znesek za razdelitev])","v":{"v":0,"d":"0.00 €"}}]
[]
[null,"Osebni predmeti in drugo premoženje"]
[null,"Navedite vse osebne predmete, na primer avtomobile, nakit, umetnine, starine, pohištvo. Vključite predmete, ki so bili morda shranjeni v trezorju ali sefu."]
[null,"Opis elementa","Lokacija","Telefon","Stik","Upravičenec","Vrednost ","Opombe"]
[]
[]
[]
[]
[]
[null,"Skupaj",{"$nulls":4},{"$f":"SUBTOTAL(109,tblOtherAssets[[Vrednost ]])","v":{"v":0,"d":"0.00 €"}}]

{"sheet":"Zapuščinske obveznosti","index":2,"n_rows":58,"n_cols":8,"rows_kept":58,"merged":[[0,1,0,7],[1,1,5,7],[6,1,6,7],[10,1,10,7],[20,1,20,7],[30,1,30,7],[40,1,40,7],[50,1,50,7]]}
[]
[null,"Zapuščinske obveznosti"]
[]
[]
[]
[]
[null,"Na tem delovnem listu lahko zajamete podrobnosti o domačih in tujih zapuščinskih obveznostih. Potrebovali boste oceno vsake obveznosti na datum smrti."]
[]
[null,"Skupno premoženje",{"$nulls":4},{"$f":"SUM(G18,G28,G38,G48,G58)","v":{"v":0,"d":"0.00 €"}}]
[]
[null,"Hipoteke"]
[null,"Finančna ustanova ","Naslov","Telefon","Nosilec naziva","Številka računa","Stanje ","Opombe"]
[]
[]
[]
[]
[]
[null,"Skupaj",{"$nulls":4},{"$f":"SUBTOTAL(109,tblBankAccounts2[[Stanje ]])","v":{"v":0,"d":"0.00 €"}}]
[]
[]
[null,"Osebna posojila in krediti"]
[null,"Finančna ustanova","Naslov","Telefon"," Številka računa","Vrsta","Stanje ","Opombe"]
[]
[]
[]
[]
[]
[null,"Skupaj",{"$nulls":4},{"$f":"SUBTOTAL(109,tblPersonalInvestments3[[Stanje ]])","v":{"v":0,"d":"0.00 €"}}]
[]
[]
[null,"Poslovni deleži"]
[null,"Ime podjetja","Naslov"," Telefon"," Stik","Vrsta","Vrednost ","Opombe"]
[]
[]
[]
[]
[]
[null,"Skupaj",{"$nulls":4},{"$f":"SUBTOTAL(109,tblBusinessInterests4[[Vrednost ]])","v":{"v":0,"d":"0.00 €"}}]
[]
[]
[null,"Kreditne kartice"]
[null,"Družba za izdajo kreditnih kartic","Naslov podjetja","Telefon","Številka kartice","Datum poteka ","Stanje ","Opombe"]
[]
[]
[]
[]
[]
[null,"Skupaj",{"$nulls":4},{"$f":"SUBTOTAL(109,tblRealEstate5[[Stanje ]])","v":{"v":0,"d":"0.00 €"}}]
[]
[]
[null,"Druge obveznosti"]
[null,"Opis elementa","Lokacija","Telefon","Stik","Upravičenec","Vrednost ","Opombe"]
[]
[]
[]
[]
[]
[null,"Skupaj",{"$nulls":4},{"$f":"SUBTOTAL(109,tblPensionPlans6[[Vrednost ]])","v":{"v":0,"d":"0.00 €"}}]